[Event "AUT Bundesliga 2022-23"]
[Site "Jenbach"]
[Date "2022.11.05"]
[Round "3.4"]
[White "Diermair, Andreas"]
[Black "Leitner, Gerald"]
[Result "1-0"]
[ECO "A06"]
[WhiteElo "2455"]
[BlackElo "2167"]
[Annotator "ChessBase"]
[PlyCount "61"]
[EventDate "2022.11.03"]
[EventType "team-tourn"]
[EventCountry "AUT"]
[SourceTitle "playchess.com"]
[Source "ChessBase"]
[SourceQuality "1"]
[TimeControl "40/5400+30:1800+30"]

1. Nf3 {[%emt 0:00:03]} d5 {[%emt 0:00:14]} 2. c4 {[%emt 0:00:13]} c6 {[%emt 0:00:52]} 3. e3 {[%emt 0:00:09]} Nf6 {[%emt 0:00:06]} 4. Nc3 {[%emt 0:00:10]} g6 {[%emt 0:00:13]} 5. d4 {[%emt 0:00:58]} Bg7 {[%emt 0:00:01]} 6. Be2 {[%emt 0:00:13]} O-O {[%emt 0:00:02]} 7. O-O {[%emt 0:00:06]} Nbd7 {[%emt 0:06:25]} 8. a4 {[%emt 0:08:32]} dxc4 {[%emt 0:04:36]} 9. Bxc4 {[%emt 0:01:21]} Nb6 {[%emt 0:00:07]} 10. Bb3 {[%emt 0:01:38]} Nbd5 {[%emt 0:00:16]} 11. a5 {[%emt 0:06:02]} Qc7 {[%emt 0:13:20]} 12. Qc2 {[%emt 0:13:35]} Nxc3 {[%emt 0:06:52]} 13. bxc3 {[%emt 0:08:07]} Bf5 {[%emt 0:01:00]} 14. Qe2 {[%emt 0:01:19]} c5 {[%emt 0:05:08]} 15. Bb2 {[%emt 0:03:40]} Rac8 {[%emt 0:01:54]} 16. Ne5 {[%emt 0:01:23]} Ne4 {[%emt 0:07:32]} 17. g4 {[%emt 0:17:24]} Bxe5 {[%emt 0:06:22]} 18. dxe5 {[%emt 0:01:34]} Bd7 {[%emt 0:00:40]} 19. c4 {[%emt 0:00:57]} f5 {[%emt 0:05:04]} 20. exf6 {[%emt 0:01:50]} Nxf6 {[%emt 0:00:20]} 21. f3 {[%emt 0:01:30]} Bc6 {[%emt 0:03:21]} 22. Qd2 {[%emt 0:02:01]} Rcd8 {[%emt 0:08:13]} 23. Qc3 {[%emt 0:00:54]} h6 {[%emt 0:00:36]} 24. Bc2 {[%emt 0:03:00]} g5 {[%emt 0:01:48]} 25. Rae1 {[%emt 0:01:24]} b6 {[%emt 0:01:40]} 26. a6 {[%emt 0:02:07]} Kf7 {[%emt 0:05:05]} 27. e4 {[%emt 0:02:53]} Rd4 {[%emt 0:00:29]} 28. e5 {[%emt 0:01:06]} Ne8 {[%emt 0:02:59]} 29. Qe3 {[%emt 0:02:01]} Rxc4 {[%emt 0:07:08]} 30. Qd3 {[%emt 0:02:04]} Rxc2 {[%emt 0:00:08]} 31. e6+ {[%emt 0:00:14]} 1-0

[Event "AUT Bundesliga 2022-23"]
[Site "Jenbach"]
[Date "2022.11.05"]
[Round "3.5"]
[White "Kersten, Julian"]
[Black "Schreiner, Peter"]
[Result "0-1"]
[ECO "B29"]
[WhiteElo "1999"]
[BlackElo "2404"]
[Annotator "TA"]
[PlyCount "72"]
[EventDate "2022.11.03"]
[EventType "team-tourn"]
[EventCountry "AUT"]
[SourceTitle "playchess.com"]
[Source "ChessBase"]
[SourceQuality "1"]
[TimeControl "40/5400+30:1800+30"]

{[%evp 9,72,11,45,14,15,25,15,0,0,-36,4,21,22,0,0,0,11,-6,28,-12,-21,-16,2,-37,-26,-34,-25,-86,-2,-47,42,0,0,0,0,0,64,69,71,77,118,0,0,0,0,0,0,-29,-54,-47,-41,-414,-446,-1216,-1185,-1029,-514,-2067,-1945,-29980,-718,-645,-562,-29994,-29995]} 1. e4 {[%emt 0:00:05]} c5 {[%emt 0:00:50]} 2. Nf3 {[%emt 0:00:15]} Nf6 {[%emt 0:00:39]} 3. Nc3 {[%emt 0:00:32]} d5 {[%emt 0:00:25]} 4. exd5 {[%emt 0:00:17]} Nxd5 {[%emt 0:00:07]} 5. Bc4 {[%emt 0:00:49]} Nb6 {[%emt 0:02:52]} 6. Be2 {[%emt 0:02:53] B29: Sicilian: 2 Nf3 Nf6 (Nimzowitsch Variation).} Nc6 {[%emt 0:00:56] Inhibits d4.} 7. O-O {[%emt 0:02:38]} e6 {[%emt 0:10:02] [#]} 8. Bb5 $146 {[%emt 0:15:19] The position is equal.} ({Predecessor:} 8. d3 Be7 9. Be3 O-O 10. d4 cxd4 11. Nxd4 e5 12. Nxc6 bxc6 13. Bf3 Qc7 14. Nb5 cxb5 15. Bxb6 Qxb6 16. Bxa8 {1-0 (33) Saksham,R (2480)-Le,T (2514) Chess.com INT 2021}) 8... Bd7 $1 {[%emt 0:03:54]} 9. d4 {[%emt 0:02:58]} a6 {[%emt 0:03:40]} 10. dxc5 {[%emt 0:06:07]} Bxc5 {[%emt 0:03:40]} 11. Ne4 {[%emt 0:02:59] And now Bxc6 would win.} Be7 {[%emt 0:01:04]} 12. Be2 {[%emt 0:01:24]} Qc7 {[%emt 0:07:00] Prevents Nd6+.} 13. c4 {[%emt 0:09:15]} O-O {[%emt 0:08:22]} 14. b3 {[%emt 0:06:19][%cal Bb2b3,Bb3b4,Bb4b5,Bb5a6][%mdl 32]} Rad8 {[%emt 0:03:56]} 15. Bb2 {[%emt 0:05:47]} e5 {[%emt 0:04:56]} 16. a3 {[%emt 0:07:32]} Bf5 {[%emt 0:12:37]} 17. Qc2 {[%emt 0:01:16]} Bg6 {[%emt 0:03:03]} 18. Rad1 {[%emt 0:14:34]} (18. Rfe1 $11 {keeps the balance.}) 18... h6 {[%emt 0:03:42]} (18... Nd7 $1 $17 {[%cal Rd7c5] Hoping for ...Nc5.} 19. b4 a5) 19. b4 {[%emt 0:03:03]} Kh7 {[%emt 0:03:32]} ({Black should play} 19... Nd7 $1 $15) 20. b5 {[%emt 0:04:38]} Nd4 {[%emt 0:03:28]} 21. Nxd4 exd4 {[%emt 0:00:17]} 22. bxa6 {[%emt 0:05:49]} Qf4 {[%emt 0:05:29]} (22... Qc6 $11 23. Bd3 bxa6) 23. Rxd4 $14 {[%emt 0:05:27]} Rxd4 {[%emt 0:08:21][%mdl 64] Remove Defender} 24. Bxd4 {[%emt 0:00:06]} Nd7 {[%emt 0:00:52] [#]} 25. Bf3 {[%emt 0:00:53]} ({Much worse is} 25. axb7 $6 Bxe4 26. Bd3 Bg6 $15) ({Better is} 25. Bd3 $1 $16 bxa6 26. g3) 25... Bd6 $11 {[%emt 0:02:40][%csl Gd6][%cal Rf4h2]} 26. Re1 {[%emt 0:01:57]} Qxh2+ {[%emt 0:01:11]} 27. Kf1 {[%emt 0:00:01]} bxa6 $40 {[%emt 0:00:29][%mdl 128] Black attacks.} 28. Qa4 {[%emt 0:00:15]} (28. Qd1 $5 {[%cal Rd4g7]}) 28... Ne5 {[%emt 0:02:34]} 29. Bxe5 {[%emt 0:00:52]} Bxe5 {[%emt 0:00:15]} 30. g3 $2 {[%emt 0:00:32][%mdl 8192] [#] White does not recover from this.} (30. Qa5 $15) 30... f5 $1 $19 {[%emt 0:02:57]} 31. Ng5+ {[%emt 0:00:45]} (31. Qb4 $142 Rb8 32. Nf6+ Kh8 33. Rd1 gxf6 34. Qe7) 31... hxg5 {[%emt 0:00:02]} 32. Rxe5 {[%emt 0:00:07]} g4 {[%emt 0:00:47]} (32... f4 $142 33. g4 Bd3+ 34. Ke1 Rb8) 33. Bd5 {[%emt 0:00:47]} (33. c5 $142 Rb8 34. Re1 gxf3 35. Qh4+ Qxh4 36. gxh4) 33... f4 {[%emt 0:00:19]} 34. gxf4 {[%emt 0:00:40]} Qxf4 {[%emt 0:00:41]} (34... g3 $142 35. fxg3 Qxg3 36. c5 Rxf4+ 37. Qxf4 Qxf4+ 38. Kg2 Qxe5 39. Ba8 Qxc5 40. a4 Qc8 41. Bf3 Bf5 42. Bh5 Be4+ 43. Kf2 Qc5+ 44. Ke2 Qxh5+ 45. Ke3 Qd5 46. Kf4 g5+ 47. Ke3 Qd3+ 48. Kf2 Qd2+ 49. Kf1 a5 50. Kg1 Qg2#) 35. Re2 {[%emt 0:00:32]} Bd3 {[%emt 0:00:18][%csl Gf8][%cal Rf4f2]} 36. Be4+ {[%emt 0:00:28]} Qxe4 {[%emt 0:00:29] Weighted Error Value: White=1.00/Black=0.55} 0-1

[Event "AUT Bundesliga 2022-23"]
[Site "Jenbach"]
[Date "2022.11.05"]
[Round "3.6"]
[White "Hoefelsauer, Thomas"]
[Black "Goetz, Christoph"]
[Result "1-0"]
[ECO "A90"]
[WhiteElo "2349"]
[BlackElo "1867"]
[Annotator "TA"]
[PlyCount "49"]
[EventDate "2022.11.03"]
[EventType "team-tourn"]
[EventCountry "AUT"]
[SourceTitle "playchess.com"]
[Source "ChessBase"]
[SourceQuality "1"]
[TimeControl "40/5400+30:1800+30"]

{[%evp 9,49,27,29,40,47,39,55,54,60,54,79,56,130,132,127,131,140,141,180,179,154,175,179,154,188,187,327,310,312,290,326,335,770,589,1083,1085,1150,1125,29993,29994,29994,29995]} 1. d4 {[%emt 0:00:05]} f5 {[%emt 0:00:07]} 2. g3 {[%emt 0:00:16]} Nf6 {[%emt 0:00:10]} 3. Bg2 {[%emt 0:00:04]} e6 {[%emt 0:00:20]} 4. c4 {[%emt 0:00:27]} Bb4+ {[%emt 0:00:13]} 5. Bd2 {[%emt 0:00:14]} Bxd2+ {[%emt 0:00:24]} 6. Qxd2 {[%emt 0:00:07] A90: Dutch Defence: Miscellaneous and Modern Stonewall (with ...Bd6).} d6 {[%emt 0:00:08]} 7. Nc3 {[%emt 0:00:16]} Nbd7 {[%emt 0:00:37]} 8. Nf3 {[%emt 0:00:23][%cal Bg1f3,Bf3g5,Bg5e4][%mdl 32] White is slightly better.} O-O {[%emt 0:00:40]} 9. O-O {[%emt 0:00:18]} Qe7 {[%emt 0:06:26] [#]} 10. Qd3 $146 {[%emt 0:00:19]} ({Predecessor:} 10. Qc2 c6 11. e4 fxe4 12. Nxe4 Nxe4 13. Qxe4 Nf6 14. Qe2 h6 15. Rfe1 Bd7 16. Rad1 Rae8 17. Nh4 {½-½ (126) Vestby Ellingsen,M (2340)-Leszko,B (2321) Chess.com INT 2021}) 10... e5 {[%emt 0:08:14]} ({Black should try} 10... Rb8 $14) 11. Qxf5 $16 {[%emt 0:05:15]} Nb6 {[%emt 0:01:47]} 12. Qc2 {[%emt 0:02:23] White is more active.} e4 {[%emt 0:08:52]} 13. Ng5 {[%emt 0:04:44][%cal Rg5e4]} e3 {[%emt 0:01:19]} 14. f4 {[%emt 0:07:50]} h6 {[%emt 0:03:10]} 15. Nge4 {[%emt 0:09:04]} Bf5 {[%emt 0:07:13]} 16. c5 {[%emt 0:12:53]} Kh8 {[%emt 0:17:04]} 17. cxb6 {[%emt 0:02:17]} cxb6 {[%emt 0:01:02]} (17... d5 {was worth a try.} 18. Qc1 dxe4 19. bxc7 (19. Qxe3 axb6 20. h3 h5 $16) 19... Qxc7) 18. g4 $18 {[%emt 0:16:45]} Nxg4 {[%emt 0:07:52][%cal Od6d5]} 19. Qc1 {[%emt 0:00:57]} d5 {[%emt 0:11:21][%cal Rf5e4]} 20. h3 {[%emt 0:03:06]} ({Weaker is} 20. Nxd5 Qh4 21. h3 Bxe4 22. Nxe3 (22. hxg4 $2 Bxg2 23. Qxe3 Qxg4 $19) 22... Rac8 $15) 20... h5 $2 {[%emt 0:12:59]} (20... dxe4 21. hxg4 Bxg4 22. Qxe3 Rae8) 21. hxg4 {[%emt 0:01:23]} hxg4 {[%emt 0:03:51]} 22. Ng5 {[%emt 0:00:34]} Rae8 {[%emt 0:01:01]} 23. Qe1 {[%emt 0:01:20] [#] Black must now prevent Qh4+.} Qb4 {[%emt 0:01:56]} 24. Qh4+ {[%emt 0:00:18]} Kg8 {[%emt 0:00:08]} 25. Bxd5+ {[%emt 0:00:10] White took control after the opening.  Weighted Error Value: White=0.23 (precise) /Black=0.66} 1-0

[Event "AUT Bundesliga 2022-23"]
[Site "Jenbach"]
[Date "2022.11.05"]
[Round "3.7"]
[White "Haba, Petr"]
[Black "Baldauf, Marco"]
[Result "1/2-1/2"]
[ECO "A50"]
[WhiteElo "2454"]
[BlackElo "2501"]
[Annotator "ChessBase"]
[PlyCount "83"]
[EventDate "2022.11.03"]
[EventType "team-tourn"]
[EventCountry "AUT"]
[SourceTitle "playchess.com"]
[Source "ChessBase"]
[SourceQuality "1"]
[TimeControl "40/5400+30:1800+30"]

1. d4 {[%emt 0:00:24]} Nf6 {[%emt 0:00:06]} 2. c4 {[%emt 0:00:06]} g6 {[%emt 0:00:04]} 3. f3 {[%emt 0:00:26]} e6 {[%emt 0:00:34]} 4. e4 {[%emt 0:05:55]} c5 {[%emt 0:00:11]} 5. d5 {[%emt 0:00:23]} d6 {[%emt 0:00:04]} 6. Nc3 {[%emt 0:00:39]} exd5 {[%emt 0:00:42]} 7. cxd5 {[%emt 0:00:06]} Bg7 {[%emt 0:00:06]} 8. Nge2 {[%emt 0:00:33]} O-O {[%emt 0:08:09]} 9. Ng3 {[%emt 0:00:40]} a6 {[%emt 0:00:10]} 10. a4 {[%emt 0:00:07]} Nbd7 {[%emt 0:00:05]} 11. Be2 {[%emt 0:00:43]} Rb8 {[%emt 0:00:24]} 12. O-O {[%emt 0:03:02]} Ne8 {[%emt 0:00:23]} 13. Bf4 {[%emt 0:04:48]} c4 {[%emt 0:01:28]} 14. Be3 {[%emt 0:24:08]} b5 {[%emt 0:04:02]} 15. axb5 {[%emt 0:02:25]} axb5 {[%emt 0:00:04]} 16. Bd4 {[%emt 0:03:54]} Bxd4+ {[%emt 0:11:39]} 17. Qxd4 {[%emt 0:00:06]} Nc5 {[%emt 0:00:04]} 18. Rad1 {[%emt 0:06:33]} Qf6 {[%emt 0:08:32]} 19. Qe3 {[%emt 0:05:31]} b4 {[%emt 0:09:24]} 20. Nb1 {[%emt 0:00:16]} Ba6 {[%emt 0:02:06]} 21. Nd2 {[%emt 0:08:35]} c3 {[%emt 0:19:31]} 22. bxc3 {[%emt 0:02:31]} bxc3 {[%emt 0:02:31]} 23. Bxa6 {[%emt 0:05:28]} Nxa6 {[%emt 0:00:06]} 24. Nc4 {[%emt 0:00:06]} Rb4 {[%emt 0:10:09]} 25. e5 {[%emt 0:06:09]} dxe5 {[%emt 0:00:46]} 26. Qxc3 {[%emt 0:00:14]} e4 {[%emt 0:05:14]} 27. Qc1 {[%emt 0:10:34]} Nc5 {[%emt 0:08:31]} 28. Nxe4 {[%emt 0:02:32]} Nxe4 {[%emt 0:01:07]} 29. fxe4 {[%emt 0:00:02]} Qe7 {[%emt 0:01:20]} 30. d6 {[%emt 0:04:32]} Qxe4 {[%emt 0:03:31]} 31. Rf4 {[%emt 0:01:13]} Qa8 {[%emt 0:01:14]} 32. d7 {[%emt 0:01:01]} Ng7 {[%emt 0:00:06]} 33. Ne5 {[%emt 0:01:46]} Rxf4 {[%emt 0:01:16]} 34. Qxf4 {[%emt 0:00:01]} Ne6 {[%emt 0:00:48]} 35. Qf6 {[%emt 0:01:31]} Qd8 {[%emt 0:00:39]} 36. Qf2 {[%emt 0:00:35]} Qg5 {[%emt 0:02:20]} 37. Nc6 {[%emt 0:00:34]} Nd8 {[%emt 0:00:36]} 38. h4 {[%emt 0:00:37]} Qg4 {[%emt 0:00:49]} 39. Rd4 {[%emt 0:00:34]} Qe6 {[%emt 0:00:07]} 40. Nxd8 {[%emt 0:00:00]} Rxd8 {[%emt 0:00:00]} 41. Qd2 {[%emt 0:02:34]} h5 {[%emt 0:05:49]} 42. Rd6 {[%emt 0:04:21]} 1/2-1/2

[Event "AUT Bundesliga 2022-23"]
[Site "Jenbach"]
[Date "2022.11.05"]
[Round "3.8"]
[White "Prusikin, Michael"]
[Black "Schwabeneder, Florian"]
[Result "1-0"]
[ECO "E91"]
[WhiteElo "2517"]
[BlackElo "2414"]
[Annotator "ChessBase"]
[PlyCount "111"]
[EventDate "2022.11.03"]
[EventType "team-tourn"]
[EventCountry "AUT"]
[SourceTitle "playchess.com"]
[Source "ChessBase"]
[SourceQuality "1"]
[TimeControl "40/5400+30:1800+30"]

1. d4 {[%emt 0:00:02]} Nf6 {[%emt 0:00:57]} 2. c4 {[%emt 0:00:06]} g6 {[%emt 0:00:09]} 3. Nc3 {[%emt 0:00:42]} Bg7 {[%emt 0:00:10]} 4. e4 {[%emt 0:00:09]} d6 {[%emt 0:00:07]} 5. Nf3 {[%emt 0:00:12]} O-O {[%emt 0:00:54]} 6. Be2 {[%emt 0:00:03]} Na6 {[%emt 0:00:16]} 7. h3 {[%emt 0:03:48]} e5 {[%emt 0:06:08]} 8. d5 {[%emt 0:09:56]} Nc5 {[%emt 0:04:00]} 9. Qc2 {[%emt 0:00:17]} a5 {[%emt 0:00:09]} 10. Bg5 {[%emt 0:01:38]} Bd7 {[%emt 0:05:43]} 11. Nd2 {[%emt 0:01:08]} c6 {[%emt 0:12:55]} 12. O-O {[%emt 0:06:19]} Qe8 {[%emt 0:06:58]} 13. Rab1 {[%emt 0:07:49]} Rc8 {[%emt 0:05:13]} 14. b4 {[%emt 0:10:46]} axb4 {[%emt 0:00:47]} 15. Rxb4 {[%emt 0:00:01]} cxd5 {[%emt 0:14:06]} 16. cxd5 {[%emt 0:02:06]} h6 {[%emt 0:05:03]} 17. Be3 {[%emt 0:03:02]} Na4 {[%emt 0:02:45]} 18. Rc4 {[%emt 0:02:09]} b5 {[%emt 0:00:07]} 19. Rxc8 {[%emt 0:00:54]} Qxc8 {[%emt 0:00:08]} 20. Rc1 {[%emt 0:00:14]} Nxc3 {[%emt 0:04:55]} 21. Qxc3 {[%emt 0:00:18]} Qa6 {[%emt 0:00:09]} 22. Qb4 {[%emt 0:06:13]} Ne8 {[%emt 0:09:46]} 23. Ra1 {[%emt 0:16:12]} f5 {[%emt 0:05:39]} 24. f3 {[%emt 0:00:02]} Nf6 {[%emt 0:01:08]} 25. a4 {[%emt 0:01:07]} Ra8 {[%emt 0:00:07]} 26. Nb3 {[%emt 0:02:06]} fxe4 {[%emt 0:09:27]} 27. axb5 {[%emt 0:04:15]} Qxa1+ {[%emt 0:01:49]} 28. Nxa1 {[%emt 0:00:04]} Rxa1+ {[%emt 0:00:08]} 29. Kh2 {[%emt 0:01:05]} exf3 {[%emt 0:00:12]} 30. Bxf3 {[%emt 0:00:23]} e4 {[%emt 0:01:33]} 31. Bxe4 {[%emt 0:10:09]} Nxe4 {[%emt 0:03:13]} 32. Qxe4 {[%emt 0:00:11]} Re1 {[%emt 0:00:17]} 33. b6 {[%emt 0:07:09]} Be5+ {[%emt 0:00:07]} 34. g3 {[%emt 0:00:01]} Bf5 {[%emt 0:00:30]} 35. Qc4 {[%emt 0:02:25]} Rb1 {[%emt 0:01:50]} 36. Bf4 {[%emt 0:02:26]} Rb2+ {[%emt 0:00:22]} 37. Kg1 {[%emt 0:00:08]} Bxf4 {[%emt 0:00:35]} 38. Qxf4 {[%emt 0:00:31]} Rxb6 {[%emt 0:00:06]} 39. g4 {[%emt 0:00:33]} Bd7 {[%emt 0:00:53]} 40. Qxh6 {[%emt 0:00:00]} Be8 {[%emt 0:00:00]} 41. Qg5 {[%emt 0:05:22]} Kg7 {[%emt 0:13:17]} 42. h4 {[%emt 0:09:02]} Bf7 {[%emt 0:01:29]} 43. h5 {[%emt 0:01:02]} Rb7 {[%emt 0:00:21]} 44. hxg6 {[%emt 0:03:14]} Bxg6 {[%emt 0:04:52]} 45. Qd8 {[%emt 0:00:36]} Rb4 {[%emt 0:02:50]} 46. g5 {[%emt 0:07:05]} Rf4 {[%emt 0:00:53]} 47. Qxd6 {[%emt 0:00:19]} Rg4+ {[%emt 0:00:11]} 48. Kf2 {[%emt 0:00:17]} Rxg5 {[%emt 0:00:19]} 49. Qe7+ {[%emt 0:00:07]} Kh6 {[%emt 0:00:06]} 50. d6 {[%emt 0:00:09]} Bf5 {[%emt 0:00:49]} 51. Qf6+ {[%emt 0:03:59]} Kh5 {[%emt 0:00:51]} 52. Kf3 {[%emt 0:00:36]} Bg4+ {[%emt 0:01:57]} 53. Kf4 {[%emt 0:00:16]} Rg8 {[%emt 0:00:21]} 54. Qf7+ {[%emt 0:00:13]} Rg6 {[%emt 0:00:08]} 55. Qh7+ {[%emt 0:00:10]} Rh6 {[%emt 0:00:06]} 56. Qxh6+ {[%emt 0:00:06]} 1-0

[Event "AUT Bundesliga 2022-23"]
[Site "Jenbach"]
[Date "2022.11.05"]
[Round "3.9"]
[White "Leisch, Lukas"]
[Black "Berchtenbreiter, Maximilian"]
[Result "1/2-1/2"]
[ECO "A10"]
[WhiteElo "2395"]
[BlackElo "2509"]
[Annotator "ChessBase"]
[PlyCount "89"]
[EventDate "2022.11.03"]
[EventType "team-tourn"]
[EventCountry "AUT"]
[SourceTitle "playchess.com"]
[Source "ChessBase"]
[SourceQuality "1"]
[TimeControl "40/5400+30:1800+30"]

1. c4 {[%emt 0:00:04]} g6 {[%emt 0:01:35]} 2. d4 {[%emt 0:03:06]} Bg7 {[%emt 0:01:14]} 3. e4 {[%emt 0:01:46]} c6 {[%emt 0:02:49]} 4. Nf3 {[%emt 0:01:30]} d5 {[%emt 0:00:03]} 5. cxd5 {[%emt 0:00:07]} cxd5 {[%emt 0:00:16]} 6. e5 {[%emt 0:00:09]} Bg4 {[%emt 0:00:05]} 7. Bb5+ {[%emt 0:04:37]} Nc6 {[%emt 0:00:44]} 8. Nbd2 {[%emt 0:08:21]} Rc8 {[%emt 0:00:26]} 9. h3 {[%emt 0:05:29]} Bxf3 {[%emt 0:00:03]} 10. Bxc6+ {[%emt 0:00:17]} Rxc6 {[%emt 0:00:04]} 11. Nxf3 {[%emt 0:00:08]} Qa5+ {[%emt 0:04:09]} 12. Bd2 {[%emt 0:03:32]} Qa6 {[%emt 0:00:44]} 13. Qe2 {[%emt 0:00:36]} Qxe2+ {[%emt 0:04:53]} 14. Kxe2 {[%emt 0:00:02]} e6 {[%emt 0:00:13]} 15. Rhc1 {[%emt 0:04:55]} Ne7 {[%emt 0:00:12]} 16. Rxc6 {[%emt 0:00:51]} Nxc6 {[%emt 0:00:26]} 17. Kd3 {[%emt 0:00:21]} Kd7 {[%emt 0:04:46]} 18. Ne1 {[%emt 0:08:25]} f6 {[%emt 0:06:43]} 19. f4 {[%emt 0:03:53]} g5 {[%emt 0:05:59]} 20. exf6 {[%emt 0:21:37]} Bxf6 {[%emt 0:00:05]} 21. Nc2 {[%emt 0:00:07]} gxf4 {[%emt 0:02:49]} 22. Bxf4 {[%emt 0:01:29]} h5 {[%emt 0:01:40]} 23. Rf1 {[%emt 0:02:26]} Rg8 {[%emt 0:05:30]} 24. g3 {[%emt 0:01:18]} Rg6 {[%emt 0:06:24]} 25. a3 {[%emt 0:02:01]} e5 {[%emt 0:07:56]} 26. dxe5 {[%emt 0:00:12]} Bxe5 {[%emt 0:00:24]} 27. Bxe5 {[%emt 0:11:00]} Nxe5+ {[%emt 0:00:18]} 28. Ke2 {[%emt 0:00:03]} Rxg3 {[%emt 0:03:45]} 29. Rf5 {[%emt 0:00:05]} Rg2+ {[%emt 0:00:04]} 30. Kd1 {[%emt 0:00:06]} Rg1+ {[%emt 0:20:16]} 31. Ke2 {[%emt 0:00:59]} Ng6 {[%emt 0:06:31]} 32. Rxd5+ {[%emt 0:01:16]} Kc7 {[%emt 0:00:22]} 33. Rxh5 {[%emt 0:04:17]} Nf4+ {[%emt 0:04:18]} 34. Kf2 {[%emt 0:00:03]} Rg2+ {[%emt 0:02:45]} 35. Kf3 {[%emt 0:00:05]} Rxc2 {[%emt 0:00:06]} 36. Kxf4 {[%emt 0:00:04]} Rxb2 {[%emt 0:00:04]} 37. Rc5+ {[%emt 0:01:35]} Kb6 {[%emt 0:03:15]} 38. Rc3 {[%emt 0:05:31]} Ka5 {[%emt 0:00:42]} 39. h4 {[%emt 0:00:45]} b5 {[%emt 0:01:34]} 40. h5 {[%emt 0:00:00]} b4 {[%emt 0:00:00]} 41. axb4+ {[%emt 0:05:52]} Rxb4+ {[%emt 0:01:32]} 42. Kg5 {[%emt 0:00:59]} Rb5+ {[%emt 0:00:03]} 43. Kg6 {[%emt 0:00:10]} Rb6+ {[%emt 0:00:02]} 44. Kg7 {[%emt 0:00:19]} Rb7+ {[%emt 0:00:04]} 45. Kg6 {[%emt 0:00:54]} 1/2-1/2